fUST/lending_fUST_20250615
["ID","MTS","AMOUNT","RATE_DAILY","PERIOD"]
[365919649,1749986946694,5000.0,0.00018,2]
[365919650,1749986947151,-500.0,0.00018,2]
[365919651,1749986948106,-1974.8870986,0.00018,2]
[365919652,1749986948128,-333.0,0.00018,2]
[365919653,1749986948152,-24900.0,0.00019325,2]
[365919654,1749986948174,-183.671156,0.00019449,2]
[365919655,1749986948749,174.71491755,0.000179,2]
[365919656,1749986963833,5000.0,0.00019787,2]
[365919657,1749986978577,180.50637306,0.00019155,2]
[365919658,1749986979253,5000.0,0.00019787,2]
[365919662,1749986994466,5000.0,0.00019787,2]
[365919663,1749987006228,6482.44866898,0.00019422,2]
[365919664,1749987006265,7545.45880422,0.00019422,2]
[365919666,1749987019337,4024.14393494,0.00019308,2]
[365919667,1749987019359,15939.2722104,0.00019308,2]
[365919668,1749987019380,4988.15961866,0.00019308,2]
[365919669,1749987020771,154.66013963,6.9e-07,2]
[365919679,1749987032329,-5000.0,0.00019892,2]
[365919680,1749987032339,-201.27308645,0.00019964,2]
[365919681,1749987032348,-979.33,0.00019987,2]
[365919682,1749987032358,-1200.0,0.00019999,2]
[365919683,1749987032368,-647.46317913,0.0002,2]
[365919684,1749987032378,-16006.76127396,0.0002,2]
[365919685,1749987032387,-500.0,0.00020164,2]
[365919687,1749987032397,-334.47938979,0.00020348,2]
[365919689,1749987032407,-300.0,0.00020445,2]
[365919691,1749987032417,-300.0,0.00020446,2]
[365919693,1749987032427,-2381.74935064,0.00020446,2]
[365919694,1749987032439,-267.74750058,0.00020446,2]
[365919695,1749987032449,-420.0,0.00020446,2]
[365919697,1749987032458,-557.71,0.00020447,2]
[365919698,1749987032467,-460.0,0.00020447,2]
[365919699,1749987032477,-400.0,0.00020447,2]
[365919700,1749987032487,-460.0,0.00020447,2]
[365919701,1749987032497,-1115.48,0.00020447,2]
[365919702,1749987032507,-719.94,0.00020447,2]
[365919703,1749987032518,-1109.85,0.00020447,2]
[365919704,1749987032527,-460.03900169,0.00020447,2]
[365919705,1749987032537,-460.0,0.00020447,2]
[365919706,1749987032547,-400.0,0.00020447,2]
[365919707,1749987032556,-460.0,0.00020447,2]
[365919708,1749987032565,-460.0,0.00020447,2]
[365919709,1749987032574,-460.0,0.00020447,2]
[365919710,1749987032584,-460.0,0.00020447,2]
[365919711,1749987032594,-460.0,0.00020447,2]
[365919712,1749987032603,-460.0,0.00020447,2]
[365919713,1749987032613,-500.0,0.00020447,2]
[365919714,1749987032622,-412.23878611,0.00020447,2]
[365919715,1749987032632,-500.0,0.00020447,2]
[365919716,1749987032641,-500.0,0.00020447,2]
[365919717,1749987032651,-500.0,0.00020447,2]
[365919718,1749987032660,-500.0,0.00020447,2]
[365919719,1749987032670,-500.0,0.00020447,2]
[365919720,1749987032679,-500.0,0.00020447,2]
[365919721,1749987032688,-500.0,0.00020447,2]
[365919722,1749987032698,-500.0,0.00020447,2]
[365919723,1749987032707,-400.0,0.00020447,2]
[365919724,1749987032716,-460.0,0.00020447,2]
[365919725,1749987032725,-460.0,0.00020447,2]
[365919726,1749987032735,-400.0,0.00020447,2]
[365919727,1749987032744,-460.0,0.00020447,2]
[365919728,1749987032753,-500.0,0.00020447,2]
[365919729,1749987032762,-500.0,0.00020447,2]
[365919730,1749987032772,-500.0,0.00020447,2]
[365919731,1749987032781,-500.0,0.00020447,2]
[365919732,1749987032791,-398.00150311,0.00020447,2]
[365919733,1749987032800,-460.0,0.00020447,2]
[365919734,1749987032810,-460.0,0.00020447,2]
[365919735,1749987032819,-400.0,0.00020447,2]
[365919736,1749987032829,-420.0,0.00020447,2]
[365919737,1749987032838,-400.0,0.00020447,2]
[365919738,1749987032848,-460.0,0.00020447,2]
[365919739,1749987032857,-460.0,0.00020447,2]
[365919740,1749987032866,-168.15747046,0.00020447,2]
[365919741,1749987032876,-460.0,0.00020447,2]
[365919742,1749987032885,-460.0,0.00020447,2]
[365919743,1749987032894,-569.84,0.00020447,2]
[365919744,1749987032903,-400.0,0.00020447,2]
[365919745,1749987032913,-460.0,0.00020447,2]
[365919746,1749987032922,-460.0,0.00020447,2]
[365919747,1749987032932,-460.0,0.00020447,2]
[365919748,1749987032941,-460.0,0.00020447,2]
[365919749,1749987032951,-460.0,0.00020447,2]
[365919750,1749987032960,-460.0,0.00020447,2]
[365919751,1749987032969,-460.0,0.00020447,2]
[365919752,1749987032978,-500.0,0.00020447,2]
[365919753,1749987032988,-460.0,0.00020447,2]
[365919754,1749987032997,-400.0,0.00020447,2]
[365919755,1749987033007,-528.19750712,0.00020448,2]
[365919756,1749987033017,-330.16891728,0.00020448,2]
[365919757,1749987033027,-460.0,0.00020448,2]
[365919758,1749987033037,-460.0,0.00020448,2]
[365919759,1749987033047,-400.0,0.00020448,2]
[365919760,1749987033058,-372.87303034,0.00020448,2]
[365919761,1749987033067,-400.0,0.00020448,2]
[365919762,1749987033078,-460.0,0.00020448,2]
[365919763,1749987033087,-261.96362287,0.00020448,2]
[365919764,1749987033097,-460.0,0.00020448,2]
[365919765,1749987033107,-350.0,0.00020448,2]
[365919766,1749987033117,-460.0,0.00020448,2]
[365919767,1749987033127,-420.0,0.00020448,2]
[365919768,1749987033136,-463.53822957,0.00020448,2]
[365919769,1749987033146,-390.0,0.00020448,2]
[365919770,1749987033156,-460.0,0.00020448,2]
[365919771,1749987033166,-460.0,0.00020448,2]
[365919772,1749987033176,-400.0,0.00020448,2]
[365919773,1749987033186,-420.0,0.00020448,2]
[365919774,1749987033196,-599.79950307,0.00020448,2]
[365919775,1749987033205,-460.0,0.00020448,2]
[365919776,1749987033215,-420.0,0.00020448,2]
[365919777,1749987033225,-420.0,0.00020448,2]
[365919778,1749987033235,-766.75,0.00020448,2]
[365919779,1749987033245,-420.0,0.00020448,2]
[365919780,1749987033255,-427.38431094,0.00020448,2]
[365919781,1749987033264,-460.0,0.00020448,2]
[365919782,1749987033275,-460.0,0.00020448,2]
[365919783,1749987033284,-460.0,0.00020448,2]
[365919784,1749987033294,-551.4,0.00020448,2]
[365919785,1749987033304,-460.0,0.00020448,2]
[365919786,1749987033313,-460.0,0.00020448,2]
[365919787,1749987033323,-460.0,0.00020448,2]
[365919788,1749987033333,-400.0,0.00020448,2]
[365919789,1749987033342,-460.0,0.00020448,2]
[365919790,1749987033352,-460.0,0.00020448,2]
[365919791,1749987033362,-460.0,0.00020448,2]
[365919792,1749987033371,-460.0,0.00020448,2]
[365919793,1749987033381,-420.0,0.00020448,2]
[365919794,1749987033390,-460.0,0.00020448,2]
[365919795,1749987033400,-460.0,0.00020448,2]
[365919796,1749987033410,-460.0,0.00020448,2]
[365919797,1749987033421,-460.0,0.00020448,2]
[365919798,1749987033430,-460.0,0.00020448,2]
[365919799,1749987033445,-460.0,0.00020448,2]
[365919800,1749987033455,-400.0,0.00020448,2]
[365919801,1749987033465,-400.0,0.00020448,2]
[365919802,1749987033479,-460.0,0.00020448,2]
[365919803,1749987033491,-460.0,0.00020448,2]
[365919804,1749987033503,-460.0,0.00020448,2]
[365919805,1749987033517,-460.0,0.00020448,2]
[365919806,1749987033530,-460.0,0.00020448,2]
[365919807,1749987033541,-400.0,0.00020448,2]
[365919808,1749987033551,-343.57466661,0.00020448,2]
[365919809,1749987033562,-460.0,0.00020448,2]
[365919810,1749987033574,-460.0,0.00020448,2]
[365919811,1749987033585,-460.0,0.00020448,2]
[365919812,1749987033598,-460.0,0.00020448,2]
[365919813,1749987033610,-460.0,0.00020448,2]
[365919814,1749987033622,-400.0,0.00020448,2]
[365919815,1749987033633,-460.0,0.00020448,2]
[365919816,1749987033645,-460.0,0.00020448,2]
[365919817,1749987033657,-460.0,0.00020448,2]
[365919818,1749987033669,-480.0,0.00020448,2]
[365919819,1749987033681,-460.0,0.00020448,2]
[365919820,1749987033692,-460.0,0.00020448,2]
[365919821,1749987033704,-460.0,0.00020448,2]
[365919822,1749987033715,-460.0,0.00020448,2]
[365919823,1749987033726,-460.0,0.00020448,2]
[365919824,1749987033737,-460.0,0.00020448,2]
[365919825,1749987033747,-460.0,0.00020448,2]
[365919826,1749987033758,-547.77,0.00020448,2]
[365919827,1749987033770,-460.0,0.00020448,2]
[365919828,1749987033781,-460.0,0.00020448,2]
[365919829,1749987033794,-460.0,0.00020448,2]
[365919830,1749987033806,-460.0,0.00020448,2]
[365919831,1749987033818,-460.0,0.00020448,2]
[365919832,1749987033830,-460.0,0.00020448,2]
[365919833,1749987033841,-460.0,0.00020448,2]
[365919834,1749987033853,-460.0,0.00020448,2]
[365919835,1749987033864,-460.0,0.00020448,2]
[365919836,1749987033876,-460.0,0.00020448,2]
[365919837,1749987033888,-410.0,0.00020448,2]
[365919838,1749987033899,-460.0,0.00020448,2]
[365919839,1749987033911,-413.50776994,0.00020448,2]
[365919840,1749987033921,-460.0,0.00020448,2]
[365919841,1749987033933,-460.0,0.00020448,2]
[365919842,1749987033944,-380.48085952,0.00020448,2]
[365919843,1749987033957,-460.0,0.00020448,2]
[365919844,1749987033970,-460.0,0.00020448,2]
[365919845,1749987033981,-460.0,0.00020448,2]
[365919846,1749987033993,-460.0,0.00020448,2]
[365919847,1749987034005,-380.0,0.00020448,2]
[365919848,1749987034017,-460.0,0.00020448,2]
[365919849,1749987034029,-602.13090665,0.00020448,2]
[365919850,1749987034040,-444.74854125,0.00020448,2]
[365919851,1749987034051,-920.2,0.00020448,2]
[365919852,1749987034063,-460.0,0.00020448,2]
[365919853,1749987034075,-460.0,0.00020449,2]
[365919854,1749987034086,-440.0,0.00020449,2]
[365919855,1749987034098,-460.0,0.00020449,2]
[365919856,1749987034110,-460.0,0.00020449,2]
[365919857,1749987034122,-460.0,0.00020449,2]
[365919858,1749987034133,-420.0,0.00020449,2]
[365919859,1749987034144,-460.0,0.00020449,2]
[365919860,1749987034155,-420.0,0.00020449,2]
[365919861,1749987034167,-460.0,0.00020449,2]
[365919862,1749987034179,-460.0,0.00020449,2]
[365919863,1749987034190,-460.0,0.00020449,2]
[365919864,1749987034200,-460.0,0.00020449,2]
[365919865,1749987034212,-460.0,0.00020449,2]
[365919866,1749987034223,-460.0,0.00020449,2]
[365919867,1749987034234,-460.0,0.00020449,2]
[365919868,1749987034246,-460.0,0.00020449,2]
[365919869,1749987034259,-1000.0,0.00020449,2]
[365919870,1749987034273,-460.0,0.00020449,2]
[365919871,1749987034286,-460.0,0.00020449,2]
[365919872,1749987034296,-388.26081988,0.00020449,2]
[365919873,1749987034306,-460.0,0.00020449,2]
[365919874,1749987034317,-460.0,0.00020449,2]
[365919875,1749987034327,-460.0,0.0002045,2]
[365919876,1749987034337,-393.76425296,0.0002045,2]
[365919877,1749987034347,-420.0,0.0002045,2]
[365919878,1749987034358,-460.0,0.0002045,2]
[365919879,1749987034369,-420.0,0.0002045,2]
[365919880,1749987034382,-460.0,0.0002045,2]
[365919881,1749987034394,-420.0,0.0002045,2]
[365919882,1749987034405,-420.0,0.0002045,2]
[365919883,1749987034417,-460.0,0.0002045,2]
[365919884,1749987034427,-420.0,0.0002045,2]
[365919885,1749987034441,-460.0,0.0002045,2]
[365919886,1749987034451,-420.0,0.0002045,2]
[365919887,1749987034461,-420.0,0.0002045,2]
[365919888,1749987034472,-420.0,0.0002045,2]
[365919889,1749987034483,-233.29752658,0.0002045,2]
[365919890,1749987034493,-186.998,0.00020527,2]
[365919891,1749987034503,-557.71,0.00020721,2]
[365919892,1749987034516,-460.0,0.00020721,2]
[365919893,1749987034527,-1115.48,0.00020721,2]
[365919894,1749987034538,-719.94,0.00020721,2]
[365919895,1749987034548,-1109.85,0.00020721,2]
[365919896,1749987034559,-460.0,0.00020721,2]
[365919897,1749987034569,-460.0,0.00020721,2]
[365919898,1749987034580,-460.6,0.00020721,2]
[365919899,1749987034591,-59.42583915,0.00020721,2]
[365919900,1749987034706,-466.99416085,0.00020721,2]
[365919901,1749987034717,-55.14641105,0.00020721,2]
[365919902,1749987034732,-404.85358895,0.00020721,2]
[365919903,1749987034743,-460.0,0.00020721,2]
[365919904,1749987034753,-460.0,0.00020721,2]
[365919905,1749987034764,-420.31551229,0.00020721,2]
[365919906,1749987034775,-400.0,0.00020721,2]
[365919907,1749987034785,-460.0,0.00020721,2]
[365919908,1749987034795,-460.0,0.00020721,2]
[365919909,1749987034806,-460.0,0.00020721,2]
[365919910,1749987034816,-460.0,0.00020721,2]
[365919911,1749987034826,-569.84,0.00020721,2]
[365919912,1749987034836,-460.0,0.00020721,2]
[365919913,1749987034846,-460.0,0.00020721,2]
[365919914,1749987034857,-460.0,0.00020721,2]
[365919915,1749987034867,-460.0,0.00020721,2]
[365919916,1749987034877,-460.0,0.00020721,2]
[365919917,1749987034888,-400.0,0.00020721,2]
[365919918,1749987034902,-400.0,0.00020721,2]
[365919919,1749987034913,-460.0,0.00020721,2]
[365919920,1749987034924,-460.0,0.00020722,2]
[365919921,1749987034935,-460.0,0.00020722,2]
[365919922,1749987034945,-400.0,0.00020722,2]
[365919923,1749987034956,-469.74,0.00020722,2]
[365919924,1749987034967,-420.0,0.00020722,2]
[365919925,1749987034978,-766.75,0.00020722,2]
[365919926,1749987034988,-460.0,0.00020722,2]
[365919927,1749987034999,-460.0,0.00020722,2]
[365919928,1749987035010,-551.4,0.00020722,2]
[365919929,1749987035020,-496.72,0.00020722,2]
[365919930,1749987035032,-180.0,0.00020722,2]
[365919931,1749987035042,-460.0,0.00020722,2]
[365919932,1749987035052,-400.0,0.00020722,2]
[365919933,1749987035216,-400.0,0.00020722,2]
[365919934,1749987035231,-400.0,0.00020722,2]
[365919935,1749987035240,-476.89,0.00020722,2]
[365919936,1749987035249,-400.0,0.00020722,2]
[365919937,1749987035259,-460.0,0.00020722,2]
[365919938,1749987035269,-1000.0,0.00020722,2]
[365919939,1749987035280,-460.0,0.00020722,2]
[365919940,1749987035290,-460.0,0.00020722,2]
[365919941,1749987035299,-460.0,0.00020722,2]
[365919942,1749987035308,-400.0,0.00020722,2]
[365919943,1749987035318,-460.0,0.00020722,2]
[365919944,1749987035327,-400.0,0.00020722,2]
[365919945,1749987035337,-460.0,0.00020722,2]
[365919946,1749987035346,-357.27779462,0.00020722,2]
[365919947,1749987035355,-327.48791154,0.00020722,2]
[365919948,1749987035365,-460.0,0.00020722,2]
[365919949,1749987035374,-400.0,0.00020722,2]
[365919950,1749987035384,-460.0,0.00020722,2]
[365919951,1749987035393,-400.0,0.00020722,2]
[365919952,1749987035403,-400.0,0.00020722,2]
[365919953,1749987035412,-460.0,0.00020722,2]
[365919954,1749987035422,-460.0,0.00020722,2]
[365919955,1749987035431,-460.0,0.00020722,2]
[365919956,1749987035445,-460.0,0.00020722,2]
[365919957,1749987035455,-400.0,0.00020722,2]
[365919958,1749987035464,-547.77,0.00020722,2]
[365919959,1749987035473,-400.0,0.00020722,2]
[365919960,1749987035483,-460.0,0.00020722,2]
[365919961,1749987035493,-460.0,0.00020722,2]
[365919962,1749987035503,-460.0,0.00020722,2]
[365919963,1749987035516,-460.0,0.00020722,2]
[365919964,1749987035525,-350.0,0.00020722,2]
[365919965,1749987035534,-380.0,0.00020722,2]
[365919966,1749987035543,-460.0,0.00020722,2]
[365919967,1749987035555,-460.0,0.00020722,2]
[365919968,1749987035566,-400.0,0.00020722,2]
[365919969,1749987035575,-400.0,0.00020722,2]
[365919970,1749987035584,-609.86,0.00020722,2]
[365919971,1749987035593,-460.0,0.00020722,2]
[365919972,1749987035604,-400.0,0.00020722,2]
[365919973,1749987035614,-920.2,0.00020722,2]
[365919974,1749987035624,-340.0,0.00020723,2]
[365919975,1749987035633,-460.0,0.00020723,2]
[365919976,1749987035642,-460.0,0.00020723,2]
[365919977,1749987035652,-1958.65,0.00020939,2]
[365919978,1749987035663,-557.71,0.00020995,2]
[365919979,1749987035673,-1115.48,0.00020995,2]
[365919980,1749987035682,-719.94,0.00020995,2]
[365919981,1749987035692,-1109.85,0.00020995,2]
[365919982,1749987035701,-295.0288162,0.00020995,2]
[365919983,1749987035713,-164.9711838,0.00020995,2]
[365919984,1749987035724,-460.0,0.00020995,2]
[365919985,1749987035734,-460.0,0.00020995,2]
[365919986,1749987035743,-460.0,0.00020995,2]
[365919987,1749987035752,-569.84,0.00020995,2]
[365919988,1749987035762,-460.0,0.00020995,2]
[365919989,1749987035771,-460.0,0.00020996,2]
[365919990,1749987035780,-766.75,0.00020996,2]
[365919991,1749987035789,-460.0,0.00020996,2]
[365919992,1749987035799,-359.93553348,0.00020996,2]
[365919993,1749987035888,-211.36095011,0.00019887,2]
[365920000,1749987038218,-284.43869286,0.00019999,2]
[365920007,1749987038272,-107.06878008,0.00019999,2]
[365920009,1749987038281,-535.87282639,0.00019999,2]
[365920011,1749987038290,-500.0,0.00019999,2]
[365920013,1749987038299,-195.76090948,0.000201,2]
[365920015,1749987038309,-570.31096563,0.00020448,2]
[365920017,1749987038319,-100.06446652,0.00020996,2]
[365920019,1749987038328,-551.4,0.00020996,2]
[365920021,1749987038337,-250.0,0.00020996,2]
[365920023,1749987038346,-460.0,0.00020996,2]
[365920025,1749987038355,-460.0,0.00020996,2]
[365920027,1749987038364,-460.0,0.00020996,2]
[365920029,1749987038373,-522.56,0.00020996,2]
[365920031,1749987038383,-547.77,0.00020996,2]
[365920033,1749987038392,-460.0,0.00020996,2]
[365920035,1749987038401,-460.0,0.00020996,2]
[365920037,1749987038411,-920.2,0.00020996,2]
[365920039,1749987038420,-460.0,0.00020997,2]
[365920041,1749987038429,-334.47938979,0.00021003,2]
[365920043,1749987038441,-168.0,0.00021137,2]
[365920045,1749987038450,-619.10277887,0.0002117,2]
[365920047,1749987038459,-557.71,0.00021269,2]
[365920049,1749987038469,-1115.48,0.00021269,2]
[365920050,1749987038479,-719.94,0.00021269,2]
[365920052,1749987038488,-1109.85,0.00021269,2]
[365920054,1749987038497,-460.0,0.00021269,2]
[365920056,1749987038506,-608.12458829,0.00021269,2]
[365920058,1749987038517,-460.0,0.00021269,2]
[365920060,1749987038526,-460.0,0.00021269,2]
[365920062,1749987038535,-569.84,0.00021269,2]
[365920064,1749987038544,-460.0,0.00021269,2]
[365920066,1749987038552,-460.0,0.0002127,2]
[365920068,1749987038561,-766.75,0.0002127,2]
[365920070,1749987038570,-207.22,0.0002127,2]
[365920072,1749987038579,-460.0,0.0002127,2]
[365920074,1749987038588,-551.4,0.0002127,2]
[365920076,1749987038597,-460.0,0.0002127,2]
[365920078,1749987038606,-460.0,0.0002127,2]
[365920080,1749987038615,-547.77,0.0002127,2]
[365920082,1749987038624,-460.0,0.0002127,2]
[365920084,1749987038633,-460.0,0.0002127,2]
[365920086,1749987038642,-920.2,0.0002127,2]
[365920088,1749987038651,-460.0,0.00021271,2]
[365920090,1749987038661,-540.12,0.000213,2]
[365920092,1749987038670,-845.25843836,0.00021527,2]
[365920094,1749987038679,-160.0,0.00021527,2]
[365920096,1749987038687,-229.86375354,0.00021527,2]
[365920098,1749987038697,-424.47602138,0.00021527,2]
[365920100,1749987038705,-160.0,0.00021527,2]
[365920102,1749987038714,-835.55256958,0.00021527,2]
[365920104,1749987038724,-557.71,0.00021543,2]
[365920106,1749987038733,-1115.48,0.00021543,2]
[365920108,1749987038743,-719.94,0.00021543,2]
[365920110,1749987038752,-1109.85,0.00021543,2]
[365920112,1749987038761,-460.0,0.00021543,2]
[365920114,1749987038770,-460.0,0.00021543,2]
[365920116,1749987038779,-569.84,0.00021543,2]
[365920118,1749987038788,-460.0,0.00021543,2]
[365920120,1749987038798,-460.0,0.00021544,2]
[365920122,1749987038807,-766.75,0.00021544,2]
[365920124,1749987038816,-460.0,0.00021544,2]
[365920126,1749987038825,-551.4,0.00021544,2]
[365920128,1749987038834,-460.0,0.00021544,2]
[365920129,1749987038843,-439.01,0.00021544,2]
[365920131,1749987038852,-547.77,0.00021544,2]
[365920133,1749987038862,-460.0,0.00021544,2]
[365920136,1749987038871,-460.0,0.00021544,2]
[365920138,1749987038881,-920.2,0.00021544,2]
[365920139,1749987038890,-460.0,0.00021545,2]
[365920142,1749987038899,-207.4,0.00021569,2]
[365920144,1749987038909,-334.47938979,0.00021658,2]
[365920146,1749987038918,-572.5822941,0.00021753,2]
[365920148,1749987038927,-557.71,0.00021817,2]
[365920150,1749987038936,-1115.48,0.00021817,2]
[365920151,1749987038946,-719.94,0.00021817,2]
[365920153,1749987038955,-1109.85,0.00021817,2]
[365920156,1749987038965,-460.0,0.00021817,2]
[365920157,1749987038974,-460.0,0.00021817,2]
[365920160,1749987038983,-569.84,0.00021817,2]
[365920162,1749987038993,-460.0,0.00021817,2]
[365920164,1749987039002,-460.0,0.00021818,2]
[365920166,1749987039011,-766.75,0.00021818,2]
[365920168,1749987039020,-460.0,0.00021818,2]
[365920169,1749987039029,-551.4,0.00021818,2]
[365920172,1749987039039,-460.0,0.00021818,2]
[365920173,1749987039048,-547.77,0.00021818,2]
[365920175,1749987039057,-460.0,0.00021818,2]
[365920177,1749987039067,-252.24,0.00021818,2]
[365920179,1749987039076,-920.2,0.00021818,2]
[365920181,1749987039085,-460.0,0.00021819,2]
[365920183,1749987039094,-619.10277885,0.00021853,2]
[365920186,1749987039103,-1031.35097267,0.00021881,2]
[365920188,1749987039116,-180.64902733,0.00021881,2]
[365920190,1749987039126,-2937.98,0.0002189,2]
[365920192,1749987039135,-613.60981641,0.000219,6]
[365920194,1749987039144,-250.0,0.00021948,2]
[365920196,1749987039153,-613.6098163,0.00022038,6]
[365920198,1749987039162,-557.71,0.00022091,2]
[365920200,1749987039171,-1115.48,0.00022091,2]
[365920202,1749987039182,-552.70551621,0.00022091,2]
[365920337,1749987040587,-288.63904989,0.00019799,2]
[365920625,1749987043241,-329.99917035,0.00019799,2]
[365920628,1749987043253,-300.83,0.00019799,2]
[365920633,1749987043299,-4080.53177976,0.00019799,2]
[365920635,1749987043309,-420.0,0.00020446,2]
[365920637,1749987043319,-460.0,0.00020447,2]
[365920639,1749987043328,-420.0,0.00020448,2]
[365920641,1749987043339,-460.0,0.00020448,2]
[365920644,1749987043350,-460.0,0.00020721,2]
[365920646,1749987043360,-460.0,0.00020722,2]
[365920648,1749987043369,-460.0,0.00020995,2]
[365920650,1749987043379,-460.0,0.00020996,2]
[365920653,1749987043388,-460.0,0.00021269,2]
[365920656,1749987043398,-460.0,0.0002127,2]
[365920658,1749987043408,-460.0,0.00021543,2]
[365920660,1749987043418,-460.0,0.00021544,2]
[365920662,1749987043428,-460.0,0.00021817,2]
[365920664,1749987043439,-460.0,0.00021818,2]
[365920666,1749987043457,-167.23448379,0.00022091,2]
[365920668,1749987043467,-1109.85,0.00022091,2]
[365920670,1749987043477,-460.0,0.00022091,2]
[365920672,1749987043486,-460.0,0.00022091,2]
[365920674,1749987043496,-569.84,0.00022091,2]
[365920676,1749987043506,-460.0,0.00022091,2]
[365920678,1749987043516,-460.0,0.00022091,2]
[365920680,1749987043526,-460.0,0.00022092,2]
[365920682,1749987043535,-766.75,0.00022092,2]
[365920684,1749987043544,-460.0,0.00022092,2]
[365920686,1749987043553,-551.4,0.00022092,2]
[365920688,1749987043562,-460.0,0.00022092,2]
[365920690,1749987043571,-547.77,0.00022092,2]
[365920692,1749987043581,-460.0,0.00022092,2]
[365920694,1749987043590,-920.2,0.00022092,2]
[365920696,1749987043599,-460.0,0.00022092,2]
[365920698,1749987043610,-535.54481304,0.00022176,6]
[365920700,1749987043622,-78.06500326,0.00022176,6]
[365920702,1749987043631,-311.09746817,0.00022252,2]
[365920704,1749987043642,-108.90253183,0.00022252,2]
[365920707,1749987043651,-420.0,0.00022253,2]
[365920709,1749987043661,-334.47938979,0.00022313,2]
[365920711,1749987043670,-613.6098163,0.00022314,7]
[365920713,1749987043680,-259.16,0.00022351,3]
[365920715,1749987043689,-500.0,0.00022356,2]
[365920717,1749987043699,-1115.48,0.00022365,2]
[365920719,1749987043708,-719.94,0.00022365,2]
[365920721,1749987043717,-1109.85,0.00022365,2]
[365920723,1749987043726,-460.0,0.00022365,2]
[365920725,1749987043736,-460.0,0.00022365,2]
[365920727,1749987043745,-569.84,0.00022365,2]
[365920729,1749987043754,-460.0,0.00022365,2]
[365920731,1749987043764,-460.0,0.00022365,2]
[365920733,1749987043773,-460.0,0.00022366,2]
[365920735,1749987043783,-766.75,0.00022366,2]
[365920737,1749987043792,-460.0,0.00022366,2]
[365920739,1749987043802,-551.4,0.00022366,2]
[365920741,1749987043811,-460.0,0.00022366,2]
[365920743,1749987043820,-547.77,0.00022366,2]
[365920745,1749987043830,-460.0,0.00022366,2]
[365920747,1749987043839,-920.2,0.00022366,2]
[365920749,1749987043849,-460.0,0.00022366,2]
[365920751,1749987043858,-1192.40291074,0.000224,7]
[365920754,1749987043874,-680.5898801,0.000224,7]
[365921099,1749987047613,-460.0,0.00020446,2]
[365921101,1749987047623,-479.96,0.00020447,2]
[365921103,1749987047632,-390.0,0.00020448,2]
[365921105,1749987047642,-460.0,0.0002072,2]
[365921107,1749987047652,-460.0,0.00020994,2]
[365921109,1749987047661,-460.0,0.00021268,2]
[365921111,1749987047671,-21525.80421622,0.000224,7]
[365921113,1749987047682,-2235.37515493,0.000224,7]
[365922741,1749987065738,-500.0,0.00019717,2]
[365923335,1749987105878,157.93562872,0.00013699,2]
[365923336,1749987106452,-157.93562872,0.00019717,2]